bitfinex/quotes_ETHUSD_20220219
["timestamp","ask_amount","ask_price","bid_price","bid_amount"]
[1645300428932,0.91461763,2745.6,2745.2,0.57541526]
[1645300429332,0.91131,2745.6,2745.2,0.57541526]
[1645300429532,0.91461778,2745.6,2745.2,0.57541526]
[1645300430384,0.91131,2745.6,2745.2,0.57541526]
[1645300430778,0.91461778,2745.6,2745.2,0.57541526]
[1645300431680,0.07306,2745.8,2745.2,0.57541526]
[1645300431880,0.00330778,2745.6,2745.2,0.57541526]
[1645300432885,0.9112603,2745.7,2745.2,0.57541526]
[1645300433282,0.00330778,2745.6,2745.2,0.57541526]
[1645300434132,2.7338403,2745.7,2745.2,0.57541526]
[1645300434335,0.00330778,2745.6,2745.3,1.54785361]
[1645300434735,0.00330778,2745.6,2745.2,0.57541526]
[1645300435334,2.7338403,2745.7,2745.2,0.57541526]
[1645300435538,0.00330778,2745.6,2745.2,0.57541526]
[1645300436535,2.7338403,2745.7,2745.2,0.57541526]
[1645300436735,0.00330778,2745.6,2745.2,0.57541526]
[1645300436935,1.8227,2745.5,2745.2,0.57541526]
[1645300437135,1.8227,2745.5,2745.2,0.52541526]
[1645300438086,2.73405,2745.5,2745.2,0.52541526]
[1645300438484,0.91464504,2745.6,2745.2,0.52541526]
[1645300438485,0.00330774,2745.6,2745.2,0.52541526]
[1645300438885,0.91128,2745.7,2745.2,0.52541526]
[1645300439184,0.00330778,2745.6,2745.2,0.52541526]
[1645300440085,1.82256,2745.7,2745.2,0.52541526]
[1645300440291,0.91462738,2745.6,2745.2,0.52541526]
[1645300440484,0.91138,2745.5,2745.2,0.52541526]
[1645300440690,1.82276,2745.5,2745.2,0.52541526]
[1645300442633,0.91462734,2745.6,2745.2,0.52541526]
[1645300443735,0.9113196,2745.6,2745.2,0.02541526]
[1645300443940,0.91462738,2745.6,2745.2,0.02541526]
[1645300444838,0.9113196,2745.6,2745.2,0.02541526]
[1645300445086,0.91462738,2745.6,2745.2,0.02541526]
[1645300445688,0.91462738,2745.6,2745.4,0.4945813]
[1645300446189,0.9113196,2745.6,2745.4,0.4945813]
[1645300446391,0.91462745,2745.6,2745.4,0.3945813]
[1645300446589,0.91462745,2745.6,2744.6,0.22499228]
[1645300447389,0.9113196,2745.6,2744.6,0.22499228]
[1645300447589,0.91462716,2745.6,2745.2,0.4696925]
[1645300448492,0.9113196,2745.6,2744.6,0.19468478]
[1645300448689,0.91462738,2745.6,2744.6,0.19468478]
[1645300449134,0.91462738,2745.6,2745.1,0.62250676]
[1645300449634,0.9113196,2745.6,2745.1,0.62250676]
[1645300450035,0.91462734,2745.6,2745.1,0.62250676]
[1645300450235,0.00330774,2745.6,2745.1,0.62250676]
[1645300450837,1.82255,2745.7,2745.1,0.62250676]
[1645300451238,0.91462454,2745.6,2745.1,0.62250676]
[1645300452038,0.9113168,2745.6,2745.1,0.62250676]
[1645300452583,0.91462454,2745.6,2745.1,0.62250676]
[1645300453385,0.9113168,2745.6,2745.1,0.62250676]
[1645300453590,1.82272,2745.5,2745.1,0.62250676]
[1645300454584,2.73408,2745.5,2745.1,0.62250676]
[1645300454787,2.73408,2745.5,2745.2,1.54781975]
[1645300454985,6.23408,2745.5,2745.2,1.54781975]
[1645300455189,6.23408,2745.5,2744.5,0.00330912]
[1645300455190,4.41136,2745.5,2744.5,0.00330912]
[1645300455390,0.91147,2745.2,2744.5,0.00330912]
[1645300455589,1.82312,2745.1,2744.5,1.5513331]
[1645300455787,1.82312,2745.1,2744.6,1.54802398]
[1645300455986,1.82312,2745.1,2744.7,2.15172023]
[1645300456343,1.82312,2745.1,2744.8,1.54802398]
[1645300456539,0.9115647,2745.0,2744.8,1.54802398]
[1645300456838,0.91157,2744.9,2744.8,1.54802398]
[1645300458639,1.82317,2744.9,2744.5,0.0033088]
[1645300458847,1.823166,2744.8,2744.5,0.0033088]
[1645300459239,1.823166,2744.8,2744.4,1.54802398]
[1645300459438,1.823166,2744.8,2744.5,1.54802398]
[1645300459639,1.823166,2744.8,2744.6,1.54802398]
[1645300459840,0.91157,2744.9,2744.7,1.54802398]
[1645300460087,0.91157,2744.9,2744.8,1.54802398]
[1645300460287,0.91157,2744.9,2744.5,0.00330865]
[1645300460488,0.91157,2744.9,2744.4,1.54802398]
[1645300460689,0.91157,2744.9,2744.5,0.0033088]
[1645300461286,0.9115066,2745.0,2744.5,0.0033088]
[1645300461490,0.9115066,2745.0,2744.3,0.64030594]
[1645300461687,0.9115066,2745.0,2744.3,0.62706999]
[1645300463086,0.9115066,2745.0,2744.4,0.00330877]
[1645300464154,0.9115066,2745.0,2744.3,0.62706999]
[1645300464350,1.8231774,2744.8,2744.4,0.0033088]
[1645300465351,1.8231774,2744.8,2744.3,0.62706999]
[1645300465552,1.8231774,2744.8,2744.4,0.00330873]
[1645300466555,1.8231774,2744.8,2744.1,0.00331041]
[1645300466759,1.8231774,2744.8,2744.4,0.00330873]
[1645300467591,1.82315,2744.9,2744.4,0.62363858]
[1645300467592,0.91156,2744.9,2744.4,0.62363858]
[1645300468586,8.69036272,2745.1,2744.4,0.62363858]
[1645300468587,3.22100782,2745.1,2744.4,0.62363858]
[1645300468985,3.2177,2745.1,2744.4,0.62032985]
[1645300469186,3.2177,2745.1,2744.4,0.62363869]
[1645300469187,3.22100792,2745.1,2744.4,0.62363869]
[1645300470186,3.2177,2745.1,2744.4,0.62032985]
[1645300470386,4.13251792,2745.1,2744.4,0.62363869]
[1645300470588,1.823034,2745.0,2744.4,0.62363869]
[1645300471439,1.823034,2745.0,2744.1,0.00331041]
[1645300471639,0.91158,2744.8,2744.4,0.00329453]
[1645300472437,0.91158,2744.8,2744.1,0.00331041]
[1645300472639,0.91158,2744.8,2744.3,0.48897762]
[1645300472942,0.91158,2744.8,2744.4,0.00329445]
[1645300473740,2.734604,2745.0,2744.1,0.00331041]
[1645300474040,1.8231807,2744.8,2744.4,0.00329445]
[1645300474740,0.9116,2744.8,2744.4,0.00329445]
[1645300474939,0.62853271,2744.7,2744.1,0.64123151]
[1645300475186,0.62853271,2744.7,2744.4,0.00330873]
[1645300475386,0.9116,2744.8,2744.4,0.00330873]
[1645300476189,1.8230888,2745.0,2744.1,0.64123151]
[1645300476390,1.5529119,2745.0,2744.4,0.00330873]
[1645300477195,1.5529119,2745.0,2744.1,0.49837667]
[1645300477392,1.5529119,2745.0,2744.1,0.48514024]
[1645300477592,1.5529119,2745.0,2744.4,0.0033088]
[1645300477593,0.9116,2744.8,2744.4,0.0033088]
[1645300477791,3.5,2744.7,2744.4,0.0033088]
[1645300477996,0.9116,2744.8,2744.4,0.0033088]
[1645300477997,3.646536,2744.8,2744.4,0.0033088]
[1645300478294,1.82349,2744.7,2744.4,0.0033088]
[1645300478494,1.82349,2744.7,2743.6,3.49746856]
[1645300478694,0.9117283,2744.4,2743.6,0.69556856]
[1645300478939,0.91176,2744.3,2743.6,0.70785451]
[1645300479135,1.40609819,2744.3,2743.6,1.25272359]
[1645300479435,2.31789819,2744.3,2743.6,0.60715503]
[1645300479636,2.31789819,2744.3,2743.6,0.59486908]
[1645300479842,0.91184,2744.1,2743.6,0.59486908]
[1645300480138,0.91184,2744.1,2743.8,0.00307086]
[1645300480936,0.91184,2744.1,2743.6,0.59486908]
[1645300481135,0.91184,2744.1,2743.8,0.00307086]
[1645300481337,0.91185,2744.0,2743.8,0.00307086]
[1645300481535,0.91184,2744.1,2744.0,0.73971147]
[1645300481737,0.91184,2744.1,2744.0,2.28805433]
[1645300483791,4.41184,2744.1,2744.0,2.28805433]
[1645300484992,4.41184,2744.1,2744.0,0.73971147]
[1645300485994,0.91184,2744.1,2744.0,0.73971147]
[1645300488344,0.91184,2744.3,2744.0,0.73971147]
[1645300489544,2.7353778,2744.3,2744.0,0.74279703]
[1645300489744,4.5590578,2744.3,2744.0,0.74279703]
[1645300490597,4.5590578,2744.3,2744.0,0.73971147]
[1645300490787,3.5,2744.2,2744.0,0.7427971]
[1645300491685,1.44350756,2744.1,2744.0,0.73971147]
[1645300492085,1.44350756,2744.1,2744.0,0.74279712]
[1645300492887,1.44350756,2744.1,2744.0,0.73971147]
[1645300493290,0.91182,2744.1,2744.0,0.73971147]
[1645300499087,4.41182,2744.1,2744.0,0.73971147]
[1645300499288,5.41182,2744.1,2744.0,0.73971147]
[1645300499486,1.91182,2744.1,2744.0,0.73971147]
[1645300499889,0.91182,2744.1,2744.0,0.73971147]
[1645300500090,0.91182,2744.1,2744.0,0.68971147]
[1645300500892,6.0,2744.0,2743.9,0.00309323]
[1645300501340,1.0,2744.0,2742.8,3.2552]
[1645300501541,0.91208,2743.5,2742.9,1.54878083]
[1645300501744,0.91213,2743.7,2743.4,0.01237091]
[1645300501939,0.91213,2743.7,2743.5,1.54878083]
[1645300502639,1.8242582,2743.7,2743.5,1.54878083]
[1645300502841,1.8242582,2743.7,2743.5,1.55187326]
[1645300503039,1.82389,2744.0,2743.5,1.55187326]
[1645300503040,0.91191,2743.9,2743.5,1.55187326]
[1645300503241,1.6876,2744.1,2743.5,1.55187326]
[1645300503440,7.0502,2744.2,2743.5,1.55187326]
[1645300503745,0.91185,2744.1,2743.5,1.54878083]
[1645300503939,0.91185,2744.1,2743.7,0.00309231]
[1645300504139,4.1162,2744.2,2743.7,0.00309231]
[1645300504140,3.2043,2744.2,2743.7,0.00309231]
[1645300504940,0.91183,2744.1,2743.5,1.54878083]
[1645300505195,3.6480122,2744.0,2743.8,0.00309238]
[1645300505794,6.99881157,2744.0,2743.8,0.00309238]
[1645300506197,3.6480122,2744.0,2743.5,1.54878083]
[1645300506401,2.73606,2743.9,2743.8,0.00309241]
[1645300507396,0.91199,2743.8,2743.5,1.54873546]
[1645300507597,0.91199,2743.8,2743.7,0.00309243]
[1645300507997,0.91199,2743.8,2743.2,0.55010069]
[1645300508597,1.8239913,2743.8,2743.2,0.55010069]
[1645300509441,2.39020009,2743.8,2743.2,0.55010069]
[1645300509640,0.912,2743.7,2743.2,0.55010069]
[1645300510441,0.91187,2744.0,2743.2,0.55010069]
[1645300510643,3.97,2744.3,2743.2,0.55010069]
[1645300511242,3.97,2744.3,2743.8,0.5395018]
[1645300511548,2.1554679,2744.3,2743.8,0.5395018]
[1645300511841,3.0672479,2744.3,2743.8,0.5395018]
[1645300512041,1.8235479,2744.3,2743.8,0.5395018]
[1645300512443,1.8235479,2744.3,2743.2,0.00330978]
[1645300512444,0.00330855,2744.2,2743.2,0.00330978]
[1645300512692,0.9118573,2744.0,2743.2,0.00330978]
[1645300512887,0.00330855,2744.2,2743.2,0.00330978]
[1645300513088,0.91515855,2744.2,2743.2,0.00330978]
[1645300513290,0.91185,2744.2,2743.1,3.5]
[1645300513487,0.91185,2744.2,2743.4,0.49235386]
[1645300513788,0.00330871,2743.8,2743.4,0.49235386]
[1645300514194,0.91523861,2743.8,2743.4,0.49235386]
[1645300514589,0.9119299,2743.8,2743.4,0.49235386]
[1645300514789,0.00330876,2743.7,2743.4,0.49235386]
[1645300515787,0.9118226,2744.1,2743.4,0.49235386]
[1645300515988,0.00330878,2743.7,2743.4,0.49235386]
[1645300516939,0.91187,2744.0,2743.4,0.49235386]
[1645300517139,0.00330878,2743.7,2743.4,0.49235386]
[1645300518145,0.91193,2743.8,2743.4,0.49235386]
[1645300518545,0.00330878,2743.7,2743.4,0.49235386]
[1645300519346,0.9118144,2744.1,2743.4,0.49235386]
[1645300519544,0.00330878,2743.7,2743.4,0.49235386]
[1645300519745,1.1397,2744.4,2743.8,0.00661755]
[1645300520106,0.00345333,2744.6,2743.8,0.00661755]
[1645300520508,2.02914333,2744.8,2744.3,0.63458394]
[1645300520708,0.91159,2744.8,2744.3,0.63458394]
[1645300522504,1.8231991,2744.8,2744.3,0.63458394]
[1645300523606,0.91159,2744.8,2744.3,0.63458394]
[1645300523840,0.9116,2744.9,2744.3,0.63458394]
[1645300524042,0.9115313,2745.0,2744.3,0.63458394]
[1645300524242,1.9115313,2745.0,2744.3,0.63458394]
[1645300524445,0.00330828,2744.7,2744.3,0.63458394]
[1645300524749,0.91494828,2744.7,2744.3,0.63458394]
[1645300524944,0.91494828,2744.7,2743.8,3.50661755]
[1645300525345,0.91164,2744.7,2743.8,3.50661755]
[1645300525547,0.00330845,2744.4,2743.8,3.50661755]
[1645300525745,0.91503285,2744.4,2743.8,3.50661755]
[1645300525947,0.91503285,2744.4,2743.8,0.00661755]
[1645300526146,0.91503285,2744.4,2744.0,0.65539478]
[1645300526545,1.82338,2744.6,2744.0,0.65539478]
[1645300526747,0.00330847,2744.3,2744.0,0.65539478]
[1645300527800,3.9292086,2744.8,2744.0,0.65539478]
[1645300527994,0.0033085,2744.3,2744.1,1.54830094]
[1645300528995,3.9292086,2744.8,2744.1,1.54830094]
[1645300529198,0.00200744,2744.3,2744.1,1.54830094]
[1645300530096,3.9292086,2744.8,2744.1,1.54830094]
[1645300530297,1.1943,2744.8,2744.1,1.54830094]
[1645300530496,0.00200744,2744.3,2744.1,1.54830094]
[1645300531347,1.1943,2744.8,2744.1,1.54830094]
[1645300531544,0.0033095,2744.3,2744.1,1.54830094]
[1645300532552,3.9290911,2744.8,2744.1,1.54830094]
[1645300532746,0.0033095,2744.3,2744.1,1.54830094]
[1645300533746,2.1059,2744.8,2744.1,1.54830094]
[1645300534147,0.0033095,2744.3,2744.1,1.54830094]
[1645300535095,2.1059,2744.8,2744.1,1.54830094]
[1645300535096,0.91163,2744.7,2744.1,1.54830094]
[1645300535293,0.0033095,2744.3,2744.1,1.54830094]
[1645300536097,0.91167,2744.6,2744.1,1.54830094]
[1645300536501,0.0033095,2744.3,2744.1,1.54830094]
[1645300537097,0.0033095,2744.3,2744.2,3.5]
[1645300537304,4.182,2745.2,2744.2,1.54830094]
[1645300537497,4.182,2745.2,2744.3,1.54830094]
[1645300537700,4.182,2745.2,2744.4,1.54830094]
[1645300537896,4.182,2745.2,2744.5,1.54830094]
[1645300538096,4.182,2745.2,2744.7,0.52247396]
[1645300538295,4.06431657,2745.4,2744.7,0.52247396]
[1645300538495,0.91143,2745.3,2744.7,0.52247396]
[1645300538950,0.91143,2745.3,2744.1,4.7439]
[1645300538951,0.0033091,2745.2,2744.1,4.7439]
[1645300539145,0.0033091,2745.2,2744.2,1.54811906]
[1645300539547,0.91155,2744.9,2744.2,1.54811906]
[1645300539746,1.82311,2744.9,2744.2,1.54811906]
[1645300539950,0.63532092,2744.7,2744.2,1.54811906]
[1645300540549,1.54700092,2744.7,2744.2,1.54811906]
[1645300540750,0.91167,2744.6,2744.2,1.54811906]
[1645300541153,0.91497938,2744.6,2744.2,1.54811906]
[1645300541849,1.82665598,2744.6,2743.8,1.14218029]
[1645300542050,1.82665598,2744.6,2743.9,1.54834401]
[1645300542251,2.7350566,2744.6,2744.0,0.00326274]
[1645300542451,0.0033095,2744.3,2744.0,0.00326274]
[1645300543401,0.91171,2744.5,2744.0,0.00326274]
[1645300543598,0.00330952,2744.3,2744.0,0.00326274]
[1645300543799,0.00330952,2744.3,2744.0,1.55160675]
[1645300544599,0.91171,2744.5,2744.0,1.55160675]
[1645300544802,0.00330952,2744.3,2744.0,1.55160675]
[1645300545701,0.91171,2744.5,2744.0,1.55160675]
[1645300546103,0.00330952,2744.3,2744.0,1.55160675]
[1645300546946,0.91171,2744.5,2744.0,1.55160675]
[1645300547348,0.00330952,2744.3,2744.0,1.55160675]
[1645300548153,1.28595,2744.8,2744.0,1.55160675]
[1645300548348,1.2119,2744.8,2744.0,1.55160675]
[1645300548549,0.00330952,2744.3,2744.0,1.55160675]
[1645300549351,1.2119,2744.8,2744.0,1.55160675]
[1645300549554,0.00330952,2744.3,2744.0,1.55160675]
[1645300550598,0.91163,2744.7,2744.0,1.55160675]
[1645300550810,0.00330952,2744.3,2744.0,1.55160675]
[1645300551796,3.27987513,2744.7,2744.0,1.55160675]
[1645300551997,0.00330952,2744.3,2744.0,1.55160675]
[1645300552196,0.00330952,2744.3,2744.0,1.50160675]
[1645300552997,3.27987513,2744.7,2744.0,1.50160675]
[1645300553195,0.00330952,2744.3,2744.0,1.50160675]
[1645300554259,3.27987513,2744.7,2744.0,1.50160675]
[1645300554458,0.00330952,2744.3,2744.0,1.50160675]
[1645300555358,2.7348827,2744.7,2744.0,1.50160675]
[1645300555560,0.00330952,2744.3,2744.0,1.50160675]
[1645300556559,2.7348827,2744.7,2744.0,1.50160675]
[1645300556763,0.00330952,2744.3,2744.0,1.50160675]
[1645300557801,1.8233,2744.7,2744.0,1.50160675]
[1645300557802,0.91163,2744.7,2744.0,1.50160675]
[1645300558009,0.00330952,2744.3,2744.0,1.50160675]
[1645300559002,1.2119,2744.8,2744.0,1.50160675]
[1645300559201,0.00330952,2744.3,2744.0,1.50160675]
[1645300560308,1.2119,2744.8,2744.5,0.48199531]
[1645300560506,3.0002,2744.9,2744.5,0.48199531]
[1645300561648,0.00330926,2744.8,2744.5,0.48199531]
[1645300562347,1.82650856,2744.8,2744.5,0.48199531]
[1645300562545,1.8231993,2744.8,2744.5,0.48199531]
[1645300562946,1.82650859,2744.8,2744.5,0.48199531]
[1645300563545,2.73810859,2744.8,2744.5,0.48199531]
[1645300563751,2.7347993,2744.8,2744.5,0.48199531]
[1645300564149,2.73810859,2744.8,2744.5,0.48199531]
[1645300564549,1.82650929,2744.8,2744.5,0.48199531]
[1645300564950,3.0002,2744.9,2744.5,0.48199531]
[1645300565201,0.00330929,2744.8,2744.5,0.48199531]
[1645300566102,2.73457,2745.1,2744.5,0.48199531]
[1645300566504,0.00330929,2744.8,2744.5,0.48199531]
[1645300567403,3.6460418,2745.1,2744.5,0.48199531]
[1645300567604,0.00330929,2744.8,2744.5,0.48199531]
[1645300568503,3.6460418,2745.1,2744.5,0.48199531]
[1645300568705,1.8229818,2745.1,2744.5,0.48199531]
[1645300568957,0.00307817,2744.8,2744.5,0.48199531]
[1645300569750,1.8229818,2745.1,2744.5,0.48199531]
[1645300569953,0.00307817,2744.8,2744.5,0.48199531]
[1645300570950,1.2317,2745.2,2744.5,0.48199531]
[1645300571151,0.00307817,2744.8,2744.5,0.48199531]
[1645300572151,2.73454,2745.1,2744.6,1.54817457]
[1645300572352,2.73454,2745.1,2744.6,1.54695468]
[1645300572606,0.00307817,2744.8,2744.6,1.54695468]
[1645300573405,1.8231234,2744.9,2744.6,1.54695468]
[1645300573608,0.0030936,2744.8,2744.6,1.54695468]
[1645300574505,1.8231234,2744.9,2744.6,1.54695468]
[1645300574906,0.0030936,2744.8,2744.6,1.54695468]
[1645300575707,1.8231234,2744.9,2744.6,1.54695468]
[1645300576110,0.0030936,2744.8,2744.6,1.54695468]
[1645300576970,1.8231234,2744.9,2744.6,1.54695468]
[1645300577172,0.0030923,2744.8,2744.6,1.54695468]
[1645300578176,1.8231234,2744.9,2744.6,1.54695468]
[1645300578177,0.91157,2744.9,2744.6,1.54695468]
[1645300578377,0.0030923,2744.8,2744.6,1.54695468]
[1645300578776,0.0030923,2744.8,2744.6,5.04695468]
[1645300578979,0.0030923,2744.8,2744.5,0.48199531]
[1645300579175,0.0030923,2744.8,2744.6,3.5]
[1645300579480,2.8797,2745.4,2744.6,3.5]
[1645300579678,0.00309233,2744.8,2744.6,3.5]
[1645300580301,0.00309233,2744.8,2744.5,0.48199531]
[1645300580599,2.8797,2745.4,2744.5,0.48199531]
[1645300580801,0.00309245,2744.8,2744.5,0.48199531]
[1645300581802,0.91145,2745.2,2744.5,0.48199531]
[1645300582005,0.91145,2745.2,2745.0,0.59348437]
[1645300582202,0.91143,2745.4,2745.0,0.59348437]
[1645300582603,0.91143,2745.4,2744.4,1.1683]
[1645300583002,1.8228085,2745.3,2744.4,1.1683]
[1645300583204,0.00309233,2745.0,2744.4,1.1683]
[1645300583850,0.00309233,2745.0,2744.5,3.5]
[1645300584051,0.00309233,2745.0,2744.4,1.1683]
[1645300584353,1.8228085,2745.3,2745.0,0.49789238]
[1645300585653,1.82590302,2745.3,2745.0,0.49789238]
[1645300586054,1.82590302,2745.3,2744.4,1.1683]
[1645300586552,1.8228085,2745.3,2744.4,1.1683]
[1645300586753,0.00309466,2745.0,2744.4,1.1683]
[1645300587157,0.00309466,2745.0,2744.7,0.53519303]
[1645300587801,1.8228085,2745.3,2744.7,0.53519303]
[1645300588002,0.00309218,2745.0,2744.7,0.53519303]
[1645300589004,1.8228085,2745.3,2744.7,0.53519303]
[1645300589202,0.00309218,2745.0,2744.7,0.53519303]
[1645300590202,0.91145,2745.2,2744.7,0.53519303]
[1645300590405,0.00309218,2745.0,2744.7,0.53519303]
[1645300591468,0.91145,2745.2,2744.7,0.53519303]
[1645300591662,0.00309235,2745.0,2744.7,0.53519303]
[1645300592262,0.00309235,2745.0,2744.8,1.54810166]
[1645300592662,1.8228085,2745.3,2744.8,1.54669816]
[1645300592862,0.00309233,2745.0,2744.8,1.54669816]
[1645300593862,1.8228085,2745.3,2744.8,1.54669816]
[1645300594063,0.00309233,2745.0,2744.8,1.54669816]
[1645300595121,2.7344322,2745.1,2744.8,1.54669816]
[1645300595307,0.00309231,2745.0,2744.8,1.54669816]
[1645300596308,0.91145,2745.2,2744.8,1.54669816]
[1645300596512,0.00309231,2745.0,2744.8,1.54669816]
[1645300597509,0.91139,2745.3,2744.8,1.54669816]
[1645300597714,0.00309231,2745.0,2744.8,1.54669816]
[1645300598713,0.9849,2745.5,2744.8,1.54669816]
[1645300598964,0.00309231,2745.0,2744.8,1.54669816]
[1645300599764,0.9849,2745.5,2744.8,1.54669816]
[1645300599961,0.9849,2745.5,2745.3,0.60920569]
[1645300600159,0.9849,2745.5,2744.4,1.1683]
[1645300600563,0.91134,2745.5,2744.4,1.1683]
[1645300601064,0.91134,2745.5,2744.5,3.5]
[1645300601259,0.00309229,2745.1,2744.6,0.46027004]
[1645300602261,0.91134,2745.5,2745.1,0.61489155]
[1645300603704,0.00309444,2745.4,2745.1,0.61489155]
[1645300604703,1.82269,2745.5,2745.1,0.61489155]
[1645300604903,0.00309447,2745.4,2745.1,0.61489155]
[1645300605102,0.91447447,2745.4,2745.1,0.61489155]
[1645300605303,0.91447447,2745.4,2744.4,1.1683]
[1645300605508,0.9113949,2745.3,2744.4,1.1683]
[1645300605709,1.8228149,2745.3,2744.4,1.1683]
[1645300606105,0.00309217,2745.0,2744.4,1.1683]
[1645300606351,0.00309217,2745.0,2744.6,0.57788229]
[1645300606554,0.00309217,2745.0,2744.4,1.1683]
[1645300606760,0.00309217,2745.0,2744.1,0.1821]
[1645300606761,1.43657177,2745.0,2744.1,0.1821]
[1645300606954,1.43657177,2745.0,2743.7,0.69289832]
[1645300606955,3.35335542,2744.9,2743.7,0.69289832]
[1645300607153,3.1028996,2745.0,2743.7,0.69289832]
[1645300607154,2.2799,2745.0,2743.7,0.69289832]
[1645300607354,0.00309224,2744.8,2743.7,0.69289832]
[1645300607557,0.91173,2744.6,2744.4,0.53028058]
[1645300608555,0.91173,2744.5,2744.4,0.53028058]
[1645300609255,0.91466384,2744.6,2744.4,0.53028058]
[1645300609456,0.91157,2744.8,2744.4,0.53028058]
[1645300609655,0.00289015,2744.6,2744.4,0.53028058]
[1645300610305,0.00289015,2744.6,2743.9,1.1321]
[1645300610713,0.91165,2744.6,2743.9,1.1321]
[1645300610908,0.00289023,2744.4,2743.9,1.1321]
[1645300611506,0.00289023,2744.4,2744.0,0.5495039]
[1645300611906,1.1321,2744.8,2744.6,0.54054458]
[1645300612107,2.734823,2744.9,2743.9,1.1321]
[1645300612514,0.91166,2744.6,2743.9,1.13534679]
[1645300612709,1.82332,2744.6,2744.0,1.54830326]
[1645300613311,0.91457052,2744.4,2744.3,0.49057578]
[1645300613506,0.91457052,2744.4,2744.3,2.03887904]
[1645300614152,1.82623052,2744.4,2744.3,2.03887904]
[1645300614355,0.91166,2744.6,2744.3,2.03887904]
[1645300614554,0.0029106,2744.5,2744.4,1.54830326]
[1645300615152,0.0029106,2744.5,2744.4,1.54728368]
[1645300615451,1.8232392,2744.6,2744.4,1.54728368]
[1645300615652,1.82614976,2744.6,2744.4,1.54728368]
[1645300616053,2.73772976,2744.6,2744.4,1.54728368]
[1645300616658,2.7348192,2744.6,2744.4,1.54728368]
[1645300616856,2.73772723,2744.6,2744.4,1.54728368]
[1645300617054,2.73772723,2744.6,2743.9,0.00324679]
[1645300617256,0.91176,2744.2,2743.7,0.00324679]
[1645300617910,0.91176,2744.2,2743.9,0.54678248]
[1645300618107,0.00290825,2744.1,2743.9,0.55002927]
[1645300618306,0.00290825,2744.1,2743.9,0.54678248]
[1645300618511,1.82643265,2744.1,2743.9,0.54678248]
[1645300619109,4.8772173,2744.4,2743.9,0.54678248]
[1645300619110,2.1418,2744.4,2743.9,0.54678248]
[1645300619310,0.00290823,2744.1,2743.9,0.55002927]
[1645300619508,0.00290823,2744.1,2743.9,0.54678248]
[1645300620316,1.2301,2744.4,2743.9,0.54678248]
[1645300620510,0.00179741,2744.1,2743.9,0.55002927]
[1645300620715,1.2301,2744.4,2744.2,0.00359481]
[1645300620909,3.2456,2744.9,2744.2,0.00359481]
[1645300621562,0.91156,2744.8,2744.2,0.00359481]
[1645300621762,0.9115688,2744.7,2744.2,0.00359481]
[1645300622158,2.7348888,2744.7,2744.2,0.00359481]
[1645300623360,1.82328,2744.6,2744.5,0.63087428]
[1645300623559,2.7349,2744.6,2744.5,0.63087428]
[1645300623766,2.7349,2744.6,2744.2,0.00359481]
[1645300623767,3.7349,2744.6,2744.2,0.00359481]
[1645300623962,0.9118494,2744.4,2744.2,0.00359481]
[1645300624460,0.522,2744.3,2744.2,0.00359481]
[1645300625618,1.43388,2744.3,2744.2,0.00359481]
[1645300627318,1.51999616,2744.3,2744.2,0.00359481]
[1645300627718,1.43388,2744.3,2744.2,0.00359481]
[1645300630159,0.91188,2744.3,2744.2,0.00359481]
[1645300630360,0.00331152,2744.4,2744.2,0.00359481]
[1645300630761,0.00331152,2744.4,2744.3,0.56576402]
[1645300631059,0.07389,2744.5,2744.3,0.56576402]
[1645300631259,0.07720147,2744.5,2744.3,0.56576402]
[1645300632261,0.07389,2744.5,2744.3,0.56576402]
[1645300632459,0.07707364,2744.5,2744.3,0.56576402]
[1645300632710,0.98878424,2744.5,2744.2,0.00359481]
[1645300633008,0.9117,2744.4,2744.2,0.00359481]
[1645300633207,0.91172,2744.3,2744.2,0.00359481]
[1645300634207,0.00318369,2744.4,2744.2,0.00359481]
[1645300634607,1.8972606,2744.5,2744.2,0.00359481]
[1645300635007,0.00318369,2744.4,2744.2,0.00359481]
[1645300635611,0.91488369,2744.4,2744.2,0.00359481]
[1645300635807,0.9117,2744.4,2744.2,0.00359481]
[1645300636210,0.91501149,2744.4,2744.2,0.00359481]
[1645300637057,0.9117,2744.4,2744.2,0.00359481]
[1645300637257,0.91501149,2744.4,2744.2,0.00359481]
[1645300638258,0.9117,2744.4,2744.2,0.00359481]
[1645300638457,0.91501149,2744.4,2744.2,0.00359481]
[1645300638859,2.73863149,2744.4,2744.2,0.00359481]
[1645300639057,1.8236,2744.3,2744.2,0.00359481]
[1645300640908,0.91175,2744.3,2744.2,0.00359481]
[1645300641109,0.91175,2744.3,2744.2,0.00255378]
[1645300653857,1.8236596,2744.2,2743.3,3.5]
[1645300654057,0.91182,2744.0,2743.3,0.00331278]
[1645300654456,0.91182,2744.0,2743.3,1.55202089]
[1645300654857,0.9118826,2743.9,2743.6,0.49618809]
[1645300655127,0.91073774,2743.9,2743.7,1.54870811]
[1645300656127,1.82365,2744.0,2743.6,0.49618809]
[1645300656327,1.8235363,2744.2,2743.6,0.49618809]
[1645300656529,1.82684767,2744.2,2743.6,0.49618809]
[1645300657129,2.43255695,2744.2,2743.6,0.49618809]
[1645300657336,3.34435695,2744.2,2743.6,0.49618809]
[1645300657530,3.34104558,2744.2,2743.6,0.49618809]
[1645300657731,3.34435702,2744.2,2743.6,0.49618809]
[1645300658631,1.82368,2744.0,2743.6,0.49618809]
[1645300659261,2.7355168,2744.0,2743.6,0.49618809]
[1645300664011,2.43257735,2744.2,2743.6,0.49618809]
[1645300664211,1.52077735,2744.2,2743.6,0.49618809]
[1645300664416,0.91506807,2744.2,2743.6,0.49618809]
[1645300664614,2.14434,2744.3,2743.6,0.49618809]
[1645300665214,0.00331144,2744.2,2743.6,0.34618809]
[1645300665815,3.0560377,2744.3,2743.6,0.34618809]
[1645300666213,3.0560377,2744.3,2744.1,0.63476546]
[1645300666214,0.00331144,2744.2,2744.1,0.63476546]
[1645300666463,1.8235705,2744.1,2743.5,1.1736]
[1645300666664,2.7353705,2744.1,2743.4,3.5]
[1645300667470,2.7353705,2744.1,2743.8,0.5722522]
[1645300670913,1.82378,2743.9,2743.3,0.00331256]
[1645300671110,0.9119328,2743.7,2743.3,0.00331256]
[1645300671915,1.8238828,2743.7,2743.0,0.1822]
[1645300672115,0.91195,2743.6,2743.3,0.00331223]
[1645300672921,0.54579736,2743.5,2743.3,0.00331223]
[1645300673115,0.91215,2743.4,2742.9,0.52304355]
[1645300673316,0.91215,2743.4,2743.3,0.00331223]
[1645300674158,1.82428,2743.4,2743.3,0.00331223]
[1645300674356,1.82428,2743.4,2742.9,0.52304355]
[1645300674562,0.91215,2743.4,2743.2,0.00331228]
[1645300675563,0.91215,2743.4,2742.9,0.52304355]
[1645300675760,1.82422,2743.4,2742.9,0.52304355]
[1645300675959,1.82422,2743.4,2743.2,0.0033123]